[Event "Titled Tuesday Blitz August 17 2021"]
[White "Martin Carmona, Gaston Manuel"]
[Black "Woodward, Andy"]
[WhiteFideId "22284567"]
[BlackFideId "30953499"]
[WhiteElo "2161"]
[BlackElo "2137"]
[Result "0-1"]
[Round "09"]
[TimeControl "180+1"]
[Date "2021.08.17"]
[WhiteClock "0:01:39"]
[BlackClock "0:00:51"]

1. e4 {[%clk 0:03:00]}  c5 {[%clk 0:02:53]} 2. Nf3 {[%clk 0:03:00]}  d6 {[%clk 0:02:54]} 3. d4 {[%clk 0:03:00]}  cxd4 {[%clk 0:02:54]} 4. Nxd4 {[%clk 0:03:01]}  Nf6 {[%clk 0:02:54]} 5. f3 {[%clk 0:03:01]}  e5 {[%clk 0:02:53]} 6. Nb3 {[%clk 0:03:01]}  d5 {[%clk 0:02:54]} 7. Bg5 {[%clk 0:03:02]}  d4 {[%clk 0:02:54]} 8. c3 {[%clk 0:02:55]}  Nc6 {[%clk 0:02:54]} 9. cxd4 {[%clk 0:02:49]}  exd4 {[%clk 0:02:44]} 10. N1d2 {[%clk 0:02:48]}  h6 {[%clk 0:02:44]} 11. Bh4 {[%clk 0:02:48]}  Bd6 {[%clk 0:02:39]} 12. a3 {[%clk 0:02:41]}  O-O {[%clk 0:02:38]} 13. Bd3 {[%clk 0:02:41]}  Ne5 {[%clk 0:02:37]} 14. Nc4 {[%clk 0:02:37]}  Nxc4 {[%clk 0:02:28]} 15. Bxc4 {[%clk 0:02:36]}  Qc7 {[%clk 0:02:28]} 16. Rc1 {[%clk 0:02:36]}  Bxh2 {[%clk 0:02:21]} 17. Bxf7+ {[%clk 0:02:30]}  Qxf7 {[%clk 0:02:20]} 18. Rxh2 {[%clk 0:02:30]}  Nxe4 {[%clk 0:01:50]} 19. fxe4 {[%clk 0:02:31]}  Qf1+ {[%clk 0:01:50]} 20. Kd2 {[%clk 0:02:31]}  Qf4+ {[%clk 0:01:51]} 21. Kd3 {[%clk 0:02:27]}  Qxh2 {[%clk 0:01:46]} 22. Qh5 {[%clk 0:02:27]}  Qxg2 {[%clk 0:01:42]} 23. Nxd4 {[%clk 0:02:24]}  Bg4 {[%clk 0:01:37]} 24. Qd5+ {[%clk 0:02:22]}  Kh8 {[%clk 0:01:34]} 25. Be7 {[%clk 0:02:22]}  Rf1 {[%clk 0:01:29]} 26. Rxf1 {[%clk 0:02:17]}  Qxf1+ {[%clk 0:01:30]} 27. Ke3 {[%clk 0:02:18]}  Re8 {[%clk 0:01:27]} 28. Qxb7 {[%clk 0:02:12]}  Qf7 {[%clk 0:01:21]} 29. Nc6 {[%clk 0:02:08]}  Qe6 {[%clk 0:01:20]} 30. e5 {[%clk 0:01:59]}  Qd7 {[%clk 0:01:16]} 31. Qa6 {[%clk 0:01:45]}  Rxe7 {[%clk 0:00:55]} 32. Nxe7 {[%clk 0:01:46]}  Qxe7 {[%clk 0:00:55]} 33. Qa5 {[%clk 0:01:45]}  Be6 {[%clk 0:00:53]} 34. b4 {[%clk 0:01:41]}  h5 {[%clk 0:00:52]} 35. b5 {[%clk 0:01:40]}  Qc5+ {[%clk 0:00:51]} 36. Kf4 {[%clk 0:01:39]}  Qd4+ {[%clk 0:00:51]} 37. Kf3 {[%clk 0:01:39]}  Bd5+ {[%clk 0:00:51]} 0-1


[Site "https://www.chess.com"]

[Event "Titled Tuesday Blitz August 17 2021"]
[White "Martins, Igor Carvalho Ribeiro"]
[Black "sganerdene"]
[WhiteFideId "2162962"]
[WhiteElo "2460"]
[BlackElo "2598"]
[Result "0-1"]
[Round "09"]
[TimeControl "180+1"]
[Date "2021.08.17"]
[WhiteClock "0:00:36"]
[BlackClock "0:00:36"]

1. Nf3 {[%clk 0:03:00]}  Nf6 {[%clk 0:02:59]} 2. c4 {[%clk 0:02:59]}  g6 {[%clk 0:02:59]} 3. Nc3 {[%clk 0:02:58]}  Bg7 {[%clk 0:02:59]} 4. e4 {[%clk 0:02:59]}  d6 {[%clk 0:02:59]} 5. d4 {[%clk 0:02:59]}  O-O {[%clk 0:02:59]} 6. Be2 {[%clk 0:03:00]}  Na6 {[%clk 0:02:58]} 7. Bf4 {[%clk 0:02:59]}  Bg4 {[%clk 0:02:40]} 8. O-O {[%clk 0:02:58]}  Nd7 {[%clk 0:02:33]} 9. d5 {[%clk 0:02:54]}  c6 {[%clk 0:02:27]} 10. Nd4 {[%clk 0:02:41]}  Bxe2 {[%clk 0:02:26]} 11. Ndxe2 {[%clk 0:02:40]}  Qb6 {[%clk 0:02:24]} 12. Qd2 {[%clk 0:02:34]}  Rac8 {[%clk 0:02:18]} 13. Be3 {[%clk 0:02:27]}  Qa5 {[%clk 0:01:50]} 14. b3 {[%clk 0:02:08]}  Rfe8 {[%clk 0:01:29]} 15. Rac1 {[%clk 0:02:05]}  cxd5 {[%clk 0:01:21]} 16. Nxd5 {[%clk 0:02:02]}  Qxd2 {[%clk 0:01:21]} 17. Bxd2 {[%clk 0:02:02]}  Nac5 {[%clk 0:01:15]} 18. f3 {[%clk 0:01:59]}  e6 {[%clk 0:01:13]} 19. Ndc3 {[%clk 0:01:46]}  a6 {[%clk 0:01:13]} 20. Be3 {[%clk 0:01:33]}  Bf8 {[%clk 0:01:04]} 21. Rfd1 {[%clk 0:01:32]}  Ne5 {[%clk 0:01:04]} 22. Rc2 {[%clk 0:01:28]}  Nc6 {[%clk 0:01:02]} 23. Nd4 {[%clk 0:01:24]}  Ne5 {[%clk 0:00:58]} 24. Rcd2 {[%clk 0:01:23]}  Bg7 {[%clk 0:00:55]} 25. Nde2 {[%clk 0:01:22]}  Bf8 {[%clk 0:00:50]} 26. h3 {[%clk 0:01:22]}  h6 {[%clk 0:00:47]} 27. Kf2 {[%clk 0:01:17]}  g5 {[%clk 0:00:47]} 28. g4 {[%clk 0:01:09]}  Ng6 {[%clk 0:00:44]} 29. Rh1 {[%clk 0:00:45]}  Nd7 {[%clk 0:00:42]} 30. Rhd1 {[%clk 0:00:38]}  Nde5 {[%clk 0:00:37]} 31. Nd4 {[%clk 0:00:36]}  b5 {[%clk 0:00:36]} 0-1


[Site "https://www.chess.com"]

[Event "Titled Tuesday Blitz August 17 2021"]
[White "Molina, Roberto Junio Brito"]
[Black "Martins, Vinicius Tine"]
[WhiteFideId "2109450"]
[BlackFideId "2112884"]
[WhiteElo "2402"]
[BlackElo "2373"]
[Result "1-0"]
[Round "09"]
[TimeControl "180+1"]
[Date "2021.08.17"]
[WhiteClock "0:00:15"]
[BlackClock "0:00:02"]

1. d4 {[%clk 0:03:00]}  d5 {[%clk 0:02:58]} 2. c4 {[%clk 0:03:00]}  c6 {[%clk 0:02:58]} 3. cxd5 {[%clk 0:02:58]}  cxd5 {[%clk 0:02:58]} 4. Bg5 {[%clk 0:02:57]}  Nc6 {[%clk 0:02:48]} 5. Nc3 {[%clk 0:02:55]}  h6 {[%clk 0:02:47]} 6. Bh4 {[%clk 0:02:54]}  Bf5 {[%clk 0:02:40]} 7. e3 {[%clk 0:02:51]}  a6 {[%clk 0:02:29]} 8. Rc1 {[%clk 0:02:49]}  g5 {[%clk 0:02:24]} 9. Bg3 {[%clk 0:02:48]}  Nf6 {[%clk 0:02:20]} 10. h4 {[%clk 0:02:46]}  Rg8 {[%clk 0:02:17]} 11. hxg5 {[%clk 0:02:45]}  hxg5 {[%clk 0:02:15]} 12. Nf3 {[%clk 0:02:43]}  Rc8 {[%clk 0:02:11]} 13. Bd3 {[%clk 0:02:39]}  Bxd3 {[%clk 0:02:09]} 14. Qxd3 {[%clk 0:02:40]}  e6 {[%clk 0:02:08]} 15. a3 {[%clk 0:02:30]}  Bd6 {[%clk 0:01:59]} 16. Bxd6 {[%clk 0:02:29]}  Qxd6 {[%clk 0:01:58]} 17. Ke2 {[%clk 0:02:23]}  g4 {[%clk 0:01:50]} 18. Nd2 {[%clk 0:02:22]}  Ke7 {[%clk 0:01:49]} 19. Rh6 {[%clk 0:02:15]}  Nd7 {[%clk 0:01:40]} 20. Rch1 {[%clk 0:02:03]}  Na5 {[%clk 0:01:30]} 21. e4 {[%clk 0:01:43]}  Nb6 {[%clk 0:01:10]} 22. e5 {[%clk 0:01:33]}  Qd7 {[%clk 0:01:05]} 23. Rh7 {[%clk 0:01:31]}  Rcf8 {[%clk 0:00:47]} 24. Nd1 {[%clk 0:01:07]}  Nac4 {[%clk 0:00:44]} 25. Nf1 {[%clk 0:01:02]}  Qb5 {[%clk 0:00:38]} 26. Nfe3 {[%clk 0:00:53]}  Nxe3 {[%clk 0:00:31]} 27. fxe3 {[%clk 0:00:44]}  Nc4 {[%clk 0:00:26]} 28. Rf1 {[%clk 0:00:36]}  Qe8 {[%clk 0:00:17]} 29. Rf6 {[%clk 0:00:32]}  b5 {[%clk 0:00:14]} 30. Qc3 {[%clk 0:00:30]}  Kd7 {[%clk 0:00:13]} 31. Qb4 {[%clk 0:00:28]}  Qe7 {[%clk 0:00:12]} 32. Qc3 {[%clk 0:00:23]}  Rh8 {[%clk 0:00:06]} 33. Rxh8 {[%clk 0:00:22]}  Rxh8 {[%clk 0:00:06]} 34. b3 {[%clk 0:00:22]}  Nxa3 {[%clk 0:00:05]} 35. Qa5 {[%clk 0:00:21]}  Kc6 {[%clk 0:00:02]} 36. Qxa6+ {[%clk 0:00:20]}  Kd7 {[%clk 0:00:02]} 37. Nc3 {[%clk 0:00:15]} 1-0


[Site "https://www.chess.com"]

[Event "Titled Tuesday Blitz August 17 2021"]
[White "Moreira, Ronaldo Alonso"]
[Black "Novikova, Galina"]
[WhiteFideId "2110547"]
[BlackFideId "4157095"]
[WhiteElo "2037"]
[BlackElo "1907"]
[Result "0-1"]
[Round "09"]
[TimeControl "180+1"]
[Date "2021.08.18"]
[WhiteClock "0:00:05"]
[BlackClock "0:00:24"]

1. d4 {[%clk 0:03:00]}  d5 {[%clk 0:02:56]} 2. c4 {[%clk 0:03:00]}  Nc6 {[%clk 0:02:56]} 3. Nf3 {[%clk 0:02:51]}  Bg4 {[%clk 0:02:56]} 4. e3 {[%clk 0:02:46]}  e5 {[%clk 0:02:55]} 5. dxe5 {[%clk 0:02:32]}  Bb4+ {[%clk 0:02:49]} 6. Bd2 {[%clk 0:02:30]}  d4 {[%clk 0:02:43]} 7. Bxb4 {[%clk 0:02:21]}  Nxb4 {[%clk 0:02:41]} 8. Qa4+ {[%clk 0:02:21]}  Nc6 {[%clk 0:02:38]} 9. Nxd4 {[%clk 0:02:14]}  Bd7 {[%clk 0:02:37]} 10. Nxc6 {[%clk 0:02:00]}  Bxc6 {[%clk 0:02:37]} 11. Qc2 {[%clk 0:01:58]}  Qe7 {[%clk 0:02:35]} 12. Qc3 {[%clk 0:01:54]}  O-O-O {[%clk 0:02:34]} 13. Nd2 {[%clk 0:01:50]}  Nh6 {[%clk 0:02:20]} 14. Be2 {[%clk 0:01:41]}  Bxg2 {[%clk 0:02:11]} 15. Rg1 {[%clk 0:01:41]}  Bc6 {[%clk 0:02:11]} 16. Rxg7 {[%clk 0:01:40]}  Qh4 {[%clk 0:01:58]} 17. e4 {[%clk 0:01:09]}  Qxh2 {[%clk 0:01:39]} 18. Qg3 {[%clk 0:01:04]}  Qh1+ {[%clk 0:01:31]} 19. Qg1 {[%clk 0:01:03]}  Qh4 {[%clk 0:01:23]} 20. Qg3 {[%clk 0:00:44]}  Qe7 {[%clk 0:01:16]} 21. O-O-O {[%clk 0:00:39]}  Rhg8 {[%clk 0:01:05]} 22. Qh3+ {[%clk 0:00:35]}  Kb8 {[%clk 0:01:03]} 23. Qxh6 {[%clk 0:00:33]}  Qxe5 {[%clk 0:01:00]} 24. Rxg8 {[%clk 0:00:25]}  Rxg8 {[%clk 0:01:01]} 25. Qe3 {[%clk 0:00:23]}  a6 {[%clk 0:00:59]} 26. Nf3 {[%clk 0:00:18]}  Qe7 {[%clk 0:00:57]} 27. Nd2 {[%clk 0:00:18]}  Rh8 {[%clk 0:00:53]} 28. Bd3 {[%clk 0:00:18]}  h5 {[%clk 0:00:53]} 29. Rh1 {[%clk 0:00:17]}  h4 {[%clk 0:00:54]} 30. Nf3 {[%clk 0:00:17]}  Qd8 {[%clk 0:00:53]} 31. Kc2 {[%clk 0:00:16]}  Ba4+ {[%clk 0:00:52]} 32. b3 {[%clk 0:00:16]}  Bc6 {[%clk 0:00:53]} 33. Qf4 {[%clk 0:00:16]}  h3 {[%clk 0:00:52]} 34. Qg3 {[%clk 0:00:15]}  Qf6 {[%clk 0:00:44]} 35. Rxh3 {[%clk 0:00:13]}  Rxh3 {[%clk 0:00:45]} 36. Qxh3 {[%clk 0:00:13]}  Qa1 {[%clk 0:00:46]} 37. Nd2 {[%clk 0:00:11]}  Qxa2+ {[%clk 0:00:46]} 38. Kd1 {[%clk 0:00:11]}  Qa1+ {[%clk 0:00:44]} 39. Ke2 {[%clk 0:00:12]}  Qd4 {[%clk 0:00:45]} 40. Qe3 {[%clk 0:00:11]}  Qe5 {[%clk 0:00:43]} 41. f4 {[%clk 0:00:12]}  Qe7 {[%clk 0:00:43]} 42. e5 {[%clk 0:00:11]}  Qh4 {[%clk 0:00:41]} 43. Be4 {[%clk 0:00:11]}  Qh2+ {[%clk 0:00:38]} 44. Kd3 {[%clk 0:00:11]}  Bd7 {[%clk 0:00:34]} 45. Bf3 {[%clk 0:00:09]}  Qh7+ {[%clk 0:00:31]} 46. Qe4 {[%clk 0:00:09]}  Bf5 {[%clk 0:00:31]} 47. Nf1 {[%clk 0:00:07]}  Bxe4+ {[%clk 0:00:31]} 48. Bxe4 {[%clk 0:00:08]}  Qh3+ {[%clk 0:00:29]} 49. Ne3 {[%clk 0:00:08]}  Qd7+ {[%clk 0:00:29]} 50. Kc3 {[%clk 0:00:08]}  a5 {[%clk 0:00:27]} 51. Nd5 {[%clk 0:00:07]}  c6 {[%clk 0:00:25]} 52. Ne3 {[%clk 0:00:07]}  Qh3 {[%clk 0:00:24]} 53. Kd3 {[%clk 0:00:05]}  Qg3 {[%clk 0:00:24]} 0-1


[Site "https://www.chess.com"]

[Event "Titled Tuesday Blitz August 17 2021"]
[White "Moroni, Luca Jr"]
[Black "Bok, Benjamin"]
[WhiteFideId "865834"]
[BlackFideId "1017063"]
[WhiteElo "2491"]
[BlackElo "2658"]
[Result "0-1"]
[Round "09"]
[TimeControl "180+1"]
[Date "2021.08.17"]
[WhiteClock "0:00:11"]
[BlackClock "0:00:14"]

1. d4 {[%clk 0:03:00]}  d5 {[%clk 0:02:59]} 2. c4 {[%clk 0:03:00]}  c6 {[%clk 0:02:59]} 3. Nc3 {[%clk 0:02:58]}  Nf6 {[%clk 0:02:59]} 4. Nf3 {[%clk 0:02:58]}  e6 {[%clk 0:02:59]} 5. Bg5 {[%clk 0:02:58]}  h6 {[%clk 0:03:00]} 6. Bh4 {[%clk 0:02:57]}  dxc4 {[%clk 0:03:00]} 7. e4 {[%clk 0:02:57]}  g5 {[%clk 0:03:00]} 8. Bg3 {[%clk 0:02:57]}  b5 {[%clk 0:03:01]} 9. Be2 {[%clk 0:02:53]}  Bb7 {[%clk 0:03:01]} 10. Qc2 {[%clk 0:02:54]}  Nh5 {[%clk 0:03:01]} 11. Be5 {[%clk 0:02:42]}  Rg8 {[%clk 0:02:59]} 12. Rd1 {[%clk 0:02:35]}  Nd7 {[%clk 0:02:38]} 13. d5 {[%clk 0:02:08]}  g4 {[%clk 0:02:36]} 14. dxe6 {[%clk 0:02:01]}  fxe6 {[%clk 0:02:37]} 15. Ng1 {[%clk 0:01:52]}  Qg5 {[%clk 0:02:33]} 16. Bd4 {[%clk 0:01:33]}  O-O-O {[%clk 0:02:15]} 17. b3 {[%clk 0:01:27]}  Bc5 {[%clk 0:01:47]} 18. bxc4 {[%clk 0:01:24]}  b4 {[%clk 0:01:46]} 19. Na4 {[%clk 0:01:19]}  Bxd4 {[%clk 0:01:44]} 20. Rxd4 {[%clk 0:01:20]}  Rgf8 {[%clk 0:01:34]} 21. Rd1 {[%clk 0:01:06]}  Nf4 {[%clk 0:01:08]} 22. Kf1 {[%clk 0:00:52]}  Ne5 {[%clk 0:00:51]} 23. Rxd8+ {[%clk 0:00:50]}  Rxd8 {[%clk 0:00:52]} 24. Nc5 {[%clk 0:00:40]}  Qe7 {[%clk 0:00:33]} 25. Nxb7 {[%clk 0:00:37]}  Kxb7 {[%clk 0:00:33]} 26. g3 {[%clk 0:00:35]}  Nxe2 {[%clk 0:00:28]} 27. Nxe2 {[%clk 0:00:35]}  Nf3 {[%clk 0:00:24]} 28. c5 {[%clk 0:00:27]}  Rd2 {[%clk 0:00:17]} 29. Qc4 {[%clk 0:00:27]}  a5 {[%clk 0:00:16]} 30. Kg2 {[%clk 0:00:26]}  Ne5 {[%clk 0:00:15]} 31. Qc1 {[%clk 0:00:22]}  Rxe2 {[%clk 0:00:16]} 32. Qxh6 {[%clk 0:00:22]}  Qf7 {[%clk 0:00:16]} 33. Rf1 {[%clk 0:00:21]}  Nd3 {[%clk 0:00:14]} 34. Kg1 {[%clk 0:00:13]}  Rxf2 {[%clk 0:00:14]} 35. Rd1 {[%clk 0:00:12]}  Qf3 {[%clk 0:00:14]} 36. Qg7+ {[%clk 0:00:11]}  Ka6 {[%clk 0:00:14]} 0-1


[Site "https://www.chess.com"]

[Event "Titled Tuesday Blitz August 17 2021"]
[White "Nastore, Pavel-Alexandru"]
[Black "Mirzanurov, Bulat"]
[WhiteFideId "1255002"]
[BlackFideId "4184521"]
[WhiteElo "1763"]
[BlackElo "2208"]
[Result "0-1"]
[Round "09"]
[TimeControl "180+1"]
[Date "2021.08.18"]
[WhiteClock "0:00:00"]
[BlackClock "0:00:01"]

1. e4 {[%clk 0:02:45]}  c5 {[%clk 0:02:58]} 2. Nf3 {[%clk 0:02:42]}  d6 {[%clk 0:02:58]} 3. d4 {[%clk 0:02:37]}  cxd4 {[%clk 0:02:59]} 4. Nxd4 {[%clk 0:02:30]}  Nf6 {[%clk 0:02:59]} 5. Nc3 {[%clk 0:02:30]}  a6 {[%clk 0:03:00]} 6. Bg5 {[%clk 0:02:31]}  e6 {[%clk 0:03:00]} 7. f4 {[%clk 0:02:32]}  h6 {[%clk 0:02:58]} 8. Bh4 {[%clk 0:02:31]}  Qb6 {[%clk 0:02:58]} 9. a3 {[%clk 0:02:29]}  Nbd7 {[%clk 0:02:57]} 10. Bf2 {[%clk 0:02:26]}  Qc7 {[%clk 0:02:56]} 11. Qf3 {[%clk 0:02:20]}  b5 {[%clk 0:02:54]} 12. O-O-O {[%clk 0:02:19]}  Bb7 {[%clk 0:02:53]} 13. g4 {[%clk 0:02:19]}  Nc5 {[%clk 0:02:51]} 14. Bd3 {[%clk 0:02:09]}  d5 {[%clk 0:02:49]} 15. e5 {[%clk 0:02:08]}  Nfe4 {[%clk 0:02:48]} 16. Bxe4 {[%clk 0:02:07]}  Nxe4 {[%clk 0:02:47]} 17. Nxe4 {[%clk 0:02:06]}  dxe4 {[%clk 0:02:47]} 18. Qe3 {[%clk 0:02:05]}  Bc5 {[%clk 0:02:41]} 19. f5 {[%clk 0:02:02]}  Rc8 {[%clk 0:02:27]} 20. c3 {[%clk 0:01:45]}  Qxe5 {[%clk 0:01:54]} 21. fxe6 {[%clk 0:01:40]}  Qxe6 {[%clk 0:01:39]} 22. Kb1 {[%clk 0:01:21]}  Bxd4 {[%clk 0:01:15]} 23. Rxd4 {[%clk 0:01:10]}  O-O {[%clk 0:01:13]} 24. g5 {[%clk 0:01:10]}  hxg5 {[%clk 0:01:05]} 25. Qxg5 {[%clk 0:01:08]}  f6 {[%clk 0:00:43]} 26. Qe3 {[%clk 0:01:01]}  f5 {[%clk 0:00:39]} 27. Bg3 {[%clk 0:00:52]}  Qf6 {[%clk 0:00:30]} 28. Bf4 {[%clk 0:00:51]}  Qe6 {[%clk 0:00:28]} 29. Rg1 {[%clk 0:00:50]}  Rf7 {[%clk 0:00:25]} 30. Rd6 {[%clk 0:00:40]}  Qb3 {[%clk 0:00:21]} 31. Be5 {[%clk 0:00:36]}  Bd5 {[%clk 0:00:19]} 32. Rdg6 {[%clk 0:00:13]}  Qa2+ {[%clk 0:00:18]} 33. Kc1 {[%clk 0:00:13]}  Qa1+ {[%clk 0:00:18]} 34. Kc2 {[%clk 0:00:13]}  Qa2 {[%clk 0:00:09]} 35. Rxg7+ {[%clk 0:00:13]}  Rxg7 {[%clk 0:00:06]} 36. Rxg7+ {[%clk 0:00:12]}  Kf8 {[%clk 0:00:07]} 37. Qg5 {[%clk 0:00:08]}  Bb3+ {[%clk 0:00:03]} 38. Kd2 {[%clk 0:00:07]}  Qxb2+ {[%clk 0:00:03]} 39. Ke3 {[%clk 0:00:08]}  Qc1+ {[%clk 0:00:03]} 40. Kf2 {[%clk 0:00:07]}  Qxg5 {[%clk 0:00:04]} 41. Rxg5 {[%clk 0:00:07]}  Be6 {[%clk 0:00:03]} 42. Ke3 {[%clk 0:00:07]}  Kf7 {[%clk 0:00:03]} 43. Kf4 {[%clk 0:00:07]}  Rc4 {[%clk 0:00:04]} 44. h4 {[%clk 0:00:07]}  Ra4 {[%clk 0:00:03]} 45. h5 {[%clk 0:00:07]}  Rxa3 {[%clk 0:00:03]} 46. h6 {[%clk 0:00:08]}  Ra1 {[%clk 0:00:03]} 47. h7 {[%clk 0:00:08]}  Rh1 {[%clk 0:00:03]} 48. h8=Q {[%clk 0:00:08]}  Rxh8 {[%clk 0:00:04]} 49. Bxh8 {[%clk 0:00:09]}  a5 {[%clk 0:00:04]} 50. Ke3 {[%clk 0:00:08]}  a4 {[%clk 0:00:03]} 51. Rg1 {[%clk 0:00:08]}  a3 {[%clk 0:00:02]} 52. Ra1 {[%clk 0:00:08]}  a2 {[%clk 0:00:03]} 53. Kf4 {[%clk 0:00:08]}  Kg6 {[%clk 0:00:02]} 54. Bd4 {[%clk 0:00:08]}  Bc4 {[%clk 0:00:02]} 55. Ke5 {[%clk 0:00:07]}  Kg5 {[%clk 0:00:01]} 56. Rg1+ {[%clk 0:00:00]}  Kh4 {[%clk 0:00:01]} 0-1


[Site "https://www.chess.com"]

[Event "Titled Tuesday Blitz August 17 2021"]
[White "Nogerbek, Kazybek"]
[Black "Kamsky, Gata"]
[WhiteFideId "13710427"]
[BlackFideId "2000024"]
[WhiteElo "2436"]
[BlackElo "2644"]
[Result "0-1"]
[Round "09"]
[TimeControl "180+1"]
[Date "2021.08.17"]
[WhiteClock "0:00:01"]
[BlackClock "0:00:22"]

1. d4 {[%clk 0:03:00]}  d5 {[%clk 0:02:58]} 2. c4 {[%clk 0:03:01]}  c6 {[%clk 0:02:58]} 3. Nf3 {[%clk 0:02:59]}  Nf6 {[%clk 0:02:57]} 4. g3 {[%clk 0:02:54]}  g6 {[%clk 0:02:56]} 5. Bg2 {[%clk 0:02:54]}  Bg7 {[%clk 0:02:56]} 6. cxd5 {[%clk 0:02:54]}  cxd5 {[%clk 0:02:55]} 7. Ne5 {[%clk 0:02:55]}  O-O {[%clk 0:02:53]} 8. Nc3 {[%clk 0:02:55]}  e6 {[%clk 0:02:51]} 9. O-O {[%clk 0:02:55]}  Nfd7 {[%clk 0:02:51]} 10. Nf3 {[%clk 0:02:49]}  Nc6 {[%clk 0:02:49]} 11. b3 {[%clk 0:02:37]}  Nf6 {[%clk 0:02:44]} 12. Bb2 {[%clk 0:02:15]}  Bd7 {[%clk 0:02:42]} 13. Rc1 {[%clk 0:02:15]}  Qe7 {[%clk 0:02:41]} 14. Nb5 {[%clk 0:01:56]}  Rfc8 {[%clk 0:02:34]} 15. Ba3 {[%clk 0:01:52]}  Nb4 {[%clk 0:02:32]} 16. Qd2 {[%clk 0:01:36]}  a5 {[%clk 0:02:28]} 17. Nc3 {[%clk 0:01:33]}  Qd8 {[%clk 0:02:16]} 18. Ne5 {[%clk 0:01:30]}  Be8 {[%clk 0:02:15]} 19. Rfd1 {[%clk 0:01:21]}  Bf8 {[%clk 0:02:12]} 20. Bb2 {[%clk 0:01:18]}  Nc6 {[%clk 0:02:02]} 21. e4 {[%clk 0:01:17]}  dxe4 {[%clk 0:01:47]} 22. Nxe4 {[%clk 0:01:17]}  Nd5 {[%clk 0:01:43]} 23. Nc3 {[%clk 0:01:05]}  Ncb4 {[%clk 0:01:37]} 24. a3 {[%clk 0:00:50]}  Nxc3 {[%clk 0:01:36]} 25. Rxc3 {[%clk 0:00:51]}  Nd5 {[%clk 0:01:32]} 26. Rxc8 {[%clk 0:00:48]}  Rxc8 {[%clk 0:01:31]} 27. Rc1 {[%clk 0:00:49]}  Rxc1+ {[%clk 0:01:27]} 28. Qxc1 {[%clk 0:00:50]}  f6 {[%clk 0:01:16]} 29. Nd3 {[%clk 0:00:48]}  Bc6 {[%clk 0:01:15]} 30. h4 {[%clk 0:00:45]}  Kf7 {[%clk 0:01:05]} 31. Qc2 {[%clk 0:00:39]}  Ne7 {[%clk 0:01:01]} 32. Bxc6 {[%clk 0:00:34]}  Nxc6 {[%clk 0:00:59]} 33. Nf4 {[%clk 0:00:30]}  Qd7 {[%clk 0:00:34]} 34. Qc4 {[%clk 0:00:28]}  Ne7 {[%clk 0:00:31]} 35. Bc3 {[%clk 0:00:24]}  b5 {[%clk 0:00:30]} 36. Qd3 {[%clk 0:00:17]}  Nd5 {[%clk 0:00:30]} 37. Nxd5 {[%clk 0:00:18]}  Qxd5 {[%clk 0:00:30]} 38. a4 {[%clk 0:00:14]}  Qxb3 {[%clk 0:00:28]} 39. axb5 {[%clk 0:00:12]}  Bb4 {[%clk 0:00:28]} 40. Qe4 {[%clk 0:00:11]}  Qxc3 {[%clk 0:00:26]} 41. Qb7+ {[%clk 0:00:11]}  Be7 {[%clk 0:00:26]} 42. b6 {[%clk 0:00:12]}  Qxd4 {[%clk 0:00:26]} 43. Qc7 {[%clk 0:00:09]}  Qc5 {[%clk 0:00:25]} 44. Qa7 {[%clk 0:00:04]}  a4 {[%clk 0:00:24]} 45. Qa6 {[%clk 0:00:03]}  a3 {[%clk 0:00:22]} 46. b7 {[%clk 0:00:03]}  Qb4 {[%clk 0:00:22]} 47. Qa8 {[%clk 0:00:03]}  a2 {[%clk 0:00:22]} 48. b8=Q {[%clk 0:00:01]} 0-1


[Site "https://www.chess.com"]

[Event "Titled Tuesday Blitz August 17 2021"]
[White "Pasquier, Thomas"]
[Black "Ezat, Mohamed"]
[WhiteFideId "614815"]
[BlackFideId "10600906"]
[WhiteElo "2127"]
[BlackElo "2414"]
[Result "0-1"]
[Round "09"]
[TimeControl "180+1"]
[Date "2021.08.18"]
[WhiteClock "0:00:06"]
[BlackClock "0:00:02"]

1. c4 {[%clk 0:03:00]}  Nf6 {[%clk 0:01:00]} 2. g3 {[%clk 0:02:57]}  g6 {[%clk 0:01:00]} 3. Bg2 {[%clk 0:02:56]}  Bg7 {[%clk 0:01:01]} 4. Nc3 {[%clk 0:02:56]}  O-O {[%clk 0:01:01]} 5. e3 {[%clk 0:02:55]}  c6 {[%clk 0:01:00]} 6. Nge2 {[%clk 0:02:53]}  d6 {[%clk 0:01:00]} 7. O-O {[%clk 0:02:51]}  e5 {[%clk 0:01:00]} 8. Rb1 {[%clk 0:02:42]}  Qe7 {[%clk 0:01:00]} 9. b4 {[%clk 0:02:42]}  Nbd7 {[%clk 0:00:59]} 10. b5 {[%clk 0:02:41]}  Nc5 {[%clk 0:00:52]} 11. d4 {[%clk 0:02:37]}  exd4 {[%clk 0:00:41]} 12. exd4 {[%clk 0:02:37]}  Nce4 {[%clk 0:00:40]} 13. bxc6 {[%clk 0:02:29]}  bxc6 {[%clk 0:00:39]} 14. Re1 {[%clk 0:02:22]}  Bf5 {[%clk 0:00:36]} 15. Rb3 {[%clk 0:02:09]}  Rfe8 {[%clk 0:00:33]} 16. Nxe4 {[%clk 0:01:45]}  Bxe4 {[%clk 0:00:32]} 17. Nc3 {[%clk 0:01:41]}  Bc2 {[%clk 0:00:19]} 18. Qxc2 {[%clk 0:01:18]}  Qxe1+ {[%clk 0:00:19]} 19. Bf1 {[%clk 0:01:18]}  Ng4 {[%clk 0:00:15]} 20. Nd1 {[%clk 0:00:32]}  Bxd4 {[%clk 0:00:14]} 21. Rf3 {[%clk 0:00:29]}  Ne5 {[%clk 0:00:13]} 22. Rb3 {[%clk 0:00:22]}  Ng4 {[%clk 0:00:09]} 23. Rf3 {[%clk 0:00:20]}  Nxh2 {[%clk 0:00:09]} 24. Kxh2 {[%clk 0:00:15]}  Qxf1 {[%clk 0:00:09]} 25. Be3 {[%clk 0:00:15]}  Bxe3 {[%clk 0:00:04]} 26. Nxe3 {[%clk 0:00:16]}  Qa1 {[%clk 0:00:04]} 27. Qd2 {[%clk 0:00:14]}  Qg7 {[%clk 0:00:04]} 28. Qxd6 {[%clk 0:00:14]}  Rad8 {[%clk 0:00:04]} 29. Qf4 {[%clk 0:00:13]}  Rd2 {[%clk 0:00:03]} 30. Ng4 {[%clk 0:00:13]}  Rd4 {[%clk 0:00:03]} 31. Nf6+ {[%clk 0:00:13]}  Kf8 {[%clk 0:00:03]} 32. Qc7 {[%clk 0:00:06]}  Qh6+ {[%clk 0:00:02]} 33. Kg2 {[%clk 0:00:06]}  Rd1 {[%clk 0:00:02]} 0-1


[Site "https://www.chess.com"]